{"text_format":"1","workbook":"xlsx","n_sheets":14,"sheets":["Form2","Variables","Message","Supplementary(Box27)","Dropdown_List","Version","Consideration(Box17)","level1(Box17)","level2(Box17)","level3(Box17)","Capacity(Box17_20)","Derivatives(Box21)","Status(Box24)","Relationship(Box26)"],"not_rendered":{"charts":0,"images":15,"macros":1,"external_links":0,"defined_names":274,"comments":0,"pivot_tables":0},"unopened":[],"bounds":{"document_bytes":16777216,"sheet_cells":100000,"rows_first":2000,"rows_last":500,"rows_between":2000,"halvings":0,"cell_chars":16384,"cell_head_chars":4096},"cells_cut":0,"cells_raw":0,"read":"whole","date_system":"1900"}

{"sheet":"Form2","index":0,"n_rows":122,"n_cols":21,"rows_kept":122,"cut":false,"hidden":false,"merged":[[120,14,120,18],[67,15,67,20],[80,4,80,14],[80,15,80,17],[80,18,80,20],[76,1,76,20],[68,18,69,20],[67,11,69,12],[67,13,69,14],[70,15,70,17],[100,1,100,3],[100,4,100,14],[100,15,100,20],[99,15,99,20],[81,4,81,14],[86,4,87,10],[86,11,86,14],[81,1,81,3],[81,15,81,17],[81,18,81,20],[110,4,110,14],[110,16,110,18],[70,18,70,20],[70,4,70,7],[24,11,24,20],[25,11,25,20],[26,16,26,20],[26,11,26,15],[35,1,35,20],[36,14,36,16],[27,16,27,20],[45,2,46,2],[43,1,46,1],[43,2,44,2],[43,3,46,4],[45,5,46,5],[36,17,36,20],[39,9,42,10],[39,6,42,7],[39,17,42,18],[39,19,40,19],[39,2,40,2],[37,14,38,15],[36,11,38,12],[43,9,46,10],[43,8,44,8],[27,11,27,15],[36,13,38,13],[39,14,42,15],[39,8,40,8],[36,5,37,10],[28,11,28,20],[39,20,42,20],[39,5,40,5],[29,11,29,20],[29,1,31,10],[30,11,30,20],[38,8,38,10],[37,17,38,18],[37,19,38,20],[39,1,42,1],[39,16,42,16],[39,13,42,13],[41,8,42,8],[37,16,38,16],[43,5,44,5],[43,6,46,7],[41,2,42,2],[45,8,46,8],[70,1,70,3],[31,11,31,20],[5,1,5,20],[8,1,9,9],[21,1,23,10],[20,11,20,20],[21,11,21,20],[11,4,11,6],[8,12,9,20],[10,12,10,14],[11,18,11,20],[13,5,13,20],[14,1,14,20],[23,11,23,15],[23,16,23,20],[22,11,22,15],[50,15,50,17],[22,16,22,20],[11,7,11,9],[39,11,42,12],[13,1,13,4],[49,1,49,3],[48,1,48,9],[2,1,2,2],[2,6,2,15],[25,1,27,10],[10,15,10,17],[43,11,46,12],[10,1,10,3],[15,1,15,20],[10,7,10,9],[16,1,16,10],[10,4,10,6],[10,18,10,20],[17,1,17,10],[17,11,17,20],[11,1,11,3],[11,12,11,14],[11,15,11,17],[41,5,42,5],[36,2,38,4],[36,1,38,1],[38,5,38,7],[4,1,4,20],[6,1,6,20],[41,19,42,19],[39,3,42,4],[120,19,121,20],[77,4,78,14],[85,1,85,20],[96,4,96,14],[95,1,95,20],[96,1,96,3],[96,15,96,20],[79,1,79,3],[118,10,118,15],[114,1,116,20],[79,18,79,20],[78,15,78,17],[78,18,78,20],[77,1,78,3],[79,4,79,14],[79,15,79,17],[77,15,77,20],[97,15,97,20],[97,1,97,3],[97,4,97,14],[110,1,110,3],[48,12,48,20],[49,4,49,6],[52,4,52,6],[49,18,49,20],[49,12,49,14],[49,7,49,9],[49,15,49,17],[50,4,50,6],[50,18,50,20],[52,12,52,14],[50,7,50,9],[51,7,51,9],[51,12,51,14],[50,12,50,14],[52,18,52,20],[70,8,70,10],[70,11,70,12],[59,2,59,5],[88,12,88,14],[67,4,69,7],[68,15,69,17],[62,2,62,5],[62,6,62,7],[62,8,62,9],[63,2,63,5],[63,6,63,7],[63,8,63,9],[62,13,62,16],[62,17,62,18],[80,1,80,3],[70,13,70,14],[66,1,66,20],[67,1,69,3],[67,8,69,10],[62,19,62,20],[63,13,63,16],[63,17,63,18],[63,19,63,20],[59,17,59,18],[50,1,50,3],[51,4,51,6],[52,1,52,3],[57,12,57,20],[52,7,52,9],[51,15,51,17],[51,18,51,20],[52,15,52,17],[57,1,57,9],[51,1,51,3],[59,19,59,20],[58,1,58,5],[58,6,58,9],[58,17,58,20],[58,12,58,16],[59,13,59,16],[60,19,60,20],[60,17,60,18],[60,13,60,16],[59,8,59,9],[59,6,59,7],[61,2,61,5],[61,6,61,7],[61,8,61,9],[61,13,61,16],[61,17,61,18],[61,19,61,20],[60,8,60,9],[60,6,60,7],[60,2,60,5],[110,19,110,20],[86,1,87,3],[86,15,86,20],[98,1,98,3],[98,4,98,14],[98,15,98,20],[99,1,99,3],[99,4,99,14],[87,15,87,17],[89,4,89,10],[89,12,89,14],[109,16,109,18],[109,19,109,20],[109,1,109,3],[109,4,109,14],[90,1,90,3],[90,4,90,10],[108,4,108,14],[108,16,108,18],[107,1,107,3],[105,4,106,14],[108,19,108,20],[105,19,106,20],[105,15,105,18],[82,1,82,3],[82,4,82,14],[82,15,82,17],[82,18,82,20],[88,4,88,10],[88,18,88,20],[87,12,87,14],[88,15,88,17],[89,1,89,3],[89,15,89,17],[89,18,89,20],[87,18,87,20],[88,1,88,3],[108,1,108,3],[90,12,90,14],[90,15,90,17],[90,18,90,20],[91,1,91,3],[91,4,91,10],[91,12,91,14],[91,15,91,17],[91,18,91,20],[107,4,107,14],[107,19,107,20],[101,15,101,20],[105,1,106,3],[106,16,106,18],[101,1,101,14],[107,16,107,18],[73,1,73,3],[73,4,73,7],[73,8,73,10],[73,11,73,12],[73,13,73,14],[73,15,73,17],[73,18,73,20],[71,1,71,3],[71,4,71,7],[71,8,71,10],[71,11,71,12],[71,13,71,14],[71,15,71,17],[71,18,71,20],[72,1,72,3],[72,4,72,7],[72,8,72,10],[72,11,72,12],[72,13,72,14],[72,15,72,17],[72,18,72,20]]}
[]
[]
[null,"FORM 2",null,null,null,null,"CORPORATE SUBSTANTIAL SHAREHOLDER NOTICE"]
[]
[null,"Notice pursuant to s.324 of Part XV of the Securities and Futures Ordinance (Cap.571)"]
[]
[]
[]
[null,"1. Date of relevant event",null,null,null,null,null,null,null,null,null,null,"2. Date when the substantial shareholder becomes aware of the relevant event/interest in the shares (if later)"]
[]
[null,"",null,null,"",null,null,"",null,null,null,null,"",null,null,"",null,null,""]
[null,"(day)",null,null,"(month)",null,null,"(year)",null,null,null,null,"(day)",null,null,"(month)",null,null,"(year)"]
[]
[null,"3. Stock code",null,null,null,""]
[null,"4. Name of listed corporation"]
[null,""]
[null,"5. Class of shares",null,null,null,null,null,null,null,null,null,"",null,null,null,""]
[null,""]
[]
[]
[null,"7.  Name of substantial shareholder ",null,null,null,null,null,null,null,null,null,"10.  Business registration number "]
[null,"",null,null,null,null,null,null,null,null,null,""]
[null,null,null,null,null,null,null,null,null,null,null,"11. Place of incorporation ",null,null,null,null,"Certificate of Incorporation number"]
[null,null,null,null,null,null,null,null,null,null,null,"",null,null,null,null,""]
[null,"8.  Registered office",null,null,"",null,null,null,null,null,null,"12. Contact person"]
[null,"",null,null,null,null,null,null,null,null,null,""]
[null,null,null,null,null,null,null,null,null,null,null,"13. Daytime telephone number",null,null,null,null,"14. Email address "]
[null,null,null,null,null,null,null,null,null,null,null,""]
[null,"9. Principal place of business in Hong Kong",null,null,null,null,null,"",null,null,null,"15. Exchange on which listed "]
[null,"",null,null,null,null,null,null,null,null,null,""]
[null,null,null,null,null,null,null,null,null,null,null,"16. Name of listed parent and exchange on which parent is listed "]
[null,null,null,null,null,null,null,null,null,null,null,""]
[]
[]
[]
[null,"17. Details of relevant event"]
[null,null,"Brief description of relevant event",null,null,"Capacity in which shares were/are held ",null,null,null,null,null,"Number of shares\nbought/sold or involved",null,"Currency of \ntransaction","On Exchange",null,null,"Off Exchange"]
[null,null,null,null,null,null,null,null,null,null,null,null,null,null,"Highest price \n(per share)",null,"Average price  \n(per share)","Average consideration\n(per share)",null,"Nature of consideration"]
[null,null,null,null,null,"Before relevant event",null,null,"After relevant event"]
[null,"Long position","Enter code or double click below","",null,"Enter code or double click below","",null,"Enter code or double click below","",null,null,null,"","",null,"","",null,"Enter code or double click below",""]
[]
[null,null,"",null,null,"",null,null,"",null,null,null,null,null,null,null,null,null,null,""]
[]
[null,"Short \nposition","Enter code or double click below","",null,"Enter code or double click below","",null,"Enter code or double click below",""]
[]
[null,null,"",null,null,"",null,null,""]
[]
[]
[null,"18. Total shares immediately before the relevant event ",null,null,null,null,null,null,null,null,null,null,"19.  Total shares immediately after the relevant event "]
[null,null,null,null,"Total number of shares",null,null,"Percentage figure (%)",null,null,null,null,null,null,null,"Total number of shares",null,null,"Percentage figure (%)"]
[null,"Long position",null,null,null,null,null,"",null,null,null,null,"Long position",null,null,null,null,null,""]
[null,"Short position",null,null,null,null,null,"",null,null,null,null,"Short position",null,null,null,null,null,""]
[null,"Lending pool",null,null,null,null,null,"",null,null,null,null,"Lending pool",null,null,null,null,null,""]
[]
[]
[]
[]
[null,"20.  Capacity in which interests disclosed in Box 19 are held",null,null,null,null,null,null,null,null,null,null,"21.  Further information in respect of derivative interests"]
[null,"Capacity code",null,null,null,null,"Number of shares",null,null,null,null,null,"Derivatives code",null,null,null,null,"Number of shares"]
[null,"Enter code or double click below","Description",null,null,null,"Long position",null,"Short position",null,null,null,"Enter code or double click below","Description",null,null,null,"Long position",null,"Short position"]
[null,"","",null,null,null,null,null,null,null,null,null,"",""]
[null,"","","","","",null,null,null,null,null,null,"","","","",""]
[null,"","",null,null,null,null,null,null,null,null,null,"",""]
[null,"","","","","",null,null,null,null,null,null,"",""]
[]
[]
[null,"22. Further information in relation to interests of corporations controlled by substantial shareholder  "]
[null,"Name of controlled corporation",null,null,"Address and place of incorporation",null,null,null,"Name of controlling \nperson",null,null,"% control",null,"Direct \ninterest\n(Y/N)",null,"Number of shares"]
[null,null,null,null,null,null,null,null,null,null,null,null,null,null,null,"Long position",null,null,"Short position"]
[]
[null,"",null,null,"",null,null,null,"",null,null,"",null,""]
[null,"",null,null,"",null,null,null,"",null,null,"",null,""]
[null,"",null,null,"",null,null,null,"",null,null,"",null,""]
[null,"",null,null,"",null,null,null,"",null,null,"",null,""]
[]
[]
[null,"23. Further information in relation to interests held by substantial shareholder jointly with another person"]
[null,"Name of joint shareholder",null,null,"Address",null,null,null,null,null,null,null,null,null,null,"Number of shares"]
[null,null,null,null,null,null,null,null,null,null,null,null,null,null,null,"Long position",null,null,"Short position"]
[null,"",null,null,""]
[null,"",null,null,""]
[null,"",null,null,""]
[null,"",null,null,""]
[]
[]
[null,"24.  Further information from a trustee, a beneficiary of a trust, or a person who has set up a discretionary trust"]
[null,"Name of trust",null,null,"Address",null,null,null,null,null,null,"Status Code",null,null,null,"Number of shares"]
[null,null,null,null,null,null,null,null,null,null,null,"Enter code or double click below","Description",null,null,"Long position",null,null,"Short position"]
[null,"",null,null,"",null,null,null,null,null,null,"",""]
[null,"",null,null,"",null,null,null,null,null,null,"","","",""]
[null,"",null,null,"",null,null,null,null,null,null,"",""]
[null,"",null,null,"",null,null,null,null,null,null,"",""]
[]
[null,null,null,null,null,null,null,null,null,null,null,""]
[]
[null,"25. Further information from a party to an agreement under section 317 (Please see Notes for further information required)"]
[null,"Names of other parties ",null,null,"Address",null,null,null,null,null,null,null,null,null,null,"Number of shares"]
[null,"",null,null,""]
[null,"",null,null,""]
[null,"",null,null,""]
[null,"",null,null,""]
[null,"Total number of shares in which a substantial shareholder is interested under sections 317 and 318"]
[]
[]
[null,"26.  Details of person(s) in accordance with whose directions the substantial shareholder or its directors are accustomed to act  "]
[null,"Names ",null,null,"Address",null,null,null,null,null,null,null,null,null,null,"Relationship Code",null,null,null,"Percentage (%)"]
[null,null,null,null,null,null,null,null,null,null,null,null,null,null,null,"Enter code or double click below","Description"]
[null,null,null,null,null,null,null,null,null,null,null,null,null,null,null,null,null,null,null,""]
[null,null,null,null,null,null,null,null,null,null,null,null,null,null,null,null,null,"","",""]
[null,null,null,null,null,null,null,null,null,null,null,null,null,null,null,null,null,null,null,""]
[null,null,null,null,null,null,null,null,null,null,null,null,null,null,null,null,null,null,null,""]
[]
[]
[null,"27. Supplementary information"]
[null,""]
[]
[]
[]
["N","28.         Check this box if this is a revision of a previously submitted form",null,null,null,null,null,null,null,null,"[insert log/serial number of the previous filing]"]
[]
[null,null,null,null,null,null,null,null,null,null,null,null,null,null,"29. Number of concert party document(s) under section 317 attached/uploaded",null,null,null,null,""]
[null,null,null,null,null,null,null,null,null,null,null,null,null,null,""]

{"sheet":"Variables","index":1,"n_rows":87,"n_cols":6,"rows_kept":87,"cut":false,"hidden":true,"merged":[]}
["strEnd",".",{"$f":" A1 & \"=.Range(\"\"B\" & F1 & \"\"\")\"","v":"strEnd=.Range(\"B1\")"},"Box 1: ",null,1]
["strVersion","You are using an outdated form.  Please download the latest version from the DION System","strVersion=.Range(\"B2\")","Box 2: ",null,2]
["strConfirmSave1","The following error(s) is/are found in this form:","strConfirmSave1=.Range(\"B3\")","Box 3: ",null,3]
["strConfirmSave2","Do you still want to save this form?","strConfirmSave2=.Range(\"B4\")","Box 4: ",null,4]
["strNotReadySubmit","The following error(s) is/are found in this form, please correct them before submission:","strNotReadySubmit=.Range(\"B5\")","Box 5: ",null,5]
["strNoCorpName","Box 3: No matching results are found for the inputted stock code","strNoCorpName=.Range(\"B6\")","Box 6: ",null,6]
["strNotHigher","The \"Average price (per share)\" should not be higher than the \"Highest price (per share)\"","strNotHigher=.Range(\"B7\")","Box 7: ",null,7]
["strEndDate","The date in the \"Ends\" column should not be earlier than the date in the \"Begins\" column","strEndDate=.Range(\"B8\")","Box 8: ",null,8]
["strEvtLongOrShort","Please fill in or select from the drop-down menu the relevant event code for long/short positions or both.","strEvtLongOrShort=.Range(\"B9\")","Box 9: ",null,9]
["strFutureDate","The date should not be later than today","strFutureDate=.Range(\"B10\")","Box 10: ",null,10]
["strNoServer","There is no connection to the server.  You may still continue to complete the form in an off-line mode","strNoServer=.Range(\"B11\")","Box 11 - Place of incorporation: ",null,11]
["strInvalidEmail","Please fill in a valid email address","strInvalidEmail=.Range(\"B12\")","Box 11 - Cerificate of Incorporation number: ",null,12]
["strInvalidTel","The telephone number should only contain numbers, and signs of \"(\", \")\", \"+\", \"-\" and \";\". Space and other characters are not allowed","strInvalidTel=.Range(\"B13\")","Box 12: ",null,13]
["strInvalidDate","Please fill in the date in (dd/mm/yyyy) format","strInvalidDate=.Range(\"B14\")","Box 13: ",null,14]
["strMaxDec","Please fill in a positive number (with up to {1} digits and {2} decimal places)","strMaxDec=.Range(\"B15\")","Box 14: ",null,15]
["strMaxDigit","Please fill in a positive number (with up to {1} digits)","strMaxDigit=.Range(\"B16\")","Box 15: ",null,16]
["strNoValue","The box is left empty. Please complete this box","strNoValue=.Range(\"B17\")","Box 16: ",null,17]
["strDeleteWarn","Warning: You are trying to delete a row from a table. Do you want to continue?","strDeleteWarn=.Range(\"B18\")","Box 17: ",null,18]
["strLastRow","This box must contain at least one row","strLastRow=.Range(\"B19\")","Box 17 - Long position - Brief description of relevant event: ",null,19]
["strCurrentRow","Please complete the current row.","strCurrentRow=.Range(\"B20\")","Box 17 - Short position - Brief description of relevant event: ",null,20]
["strMaxChar","Please fill in up to {1} characters. Special characters are not allowed","strMaxChar=.Range(\"B21\")","Box 17 - Long position - Before relevant event: ",null,21]
["strNoCodeMatch","The code you entered is invalid","strNoCodeMatch=.Range(\"B22\")","Box 17 - Short position - Before relevant event: ",null,22]
["strNoChinese","Please complete in English and number only","strNoChinese=.Range(\"B23\")","Box 17 - Long position - After relevant event: ",null,23]
["strNoCurOrPrice","Please fill in both Currency and Price","strNoCurOrPrice=.Range(\"B24\")","Box 17 - Short position - After relevant event: ",null,24]
["strNoCurrency","Please select Currency","strNoCurrency=.Range(\"B25\")","Box 17 - Long position - Number of shares bought/sold or involved: ",null,25]
["strNoReturn","Invalid data is found in the form.  Please note that \"Tab\", \"Enter\" and \"Return\" keys are not allowed for input","strNoReturn=.Range(\"B26\")","Box 17 - Short position - Number of shares bought/sold or involved: ",null,26]
["strMsgboxTitle","Invalid Entry","strMsgboxTitle=.Range(\"B27\")","Box 17 - Highest price (per share): ",null,27]
["strWarnTitle","Warning","strWarnTitle=.Range(\"B28\")","Box 17 - Average price (per share): ",null,28]
["strSystemMsg","System Message","strSystemMsg=.Range(\"B29\")","Box 17 - Average consideration (per share): ",null,29]
["strReminder","Reminder","strReminder=.Range(\"B30\")","Box 17 - Nature of consideration: ",null,30]
["strPopUpWindowTitle","Menu","strPopUpWindowTitle=.Range(\"B31\")","Box 17 - Long position: ",null,31]
["strSelectCode","Please select code in the list","strSelectCode=.Range(\"B32\")","Box 17 - Short position : ",null,32]
["strSelectLevel3","Please select in Level 3","strSelectLevel3=.Range(\"B33\")","Box 18: ",null,33]
["strSelectLevel2","Please select in Level 2","strSelectLevel2=.Range(\"B34\")","Box 18 - Long position - Total number of shares: ",null,34]
["strSelectLevel1","Please select in Level 1","strSelectLevel1=.Range(\"B35\")","Box 18 - Long position - Percentage figure (%): ",null,35]
["strNoLater","The date should not be earlier than the date in Box 1 (date of relevant event)","strNoLater=.Range(\"B36\")","Box 18 - Short position - Total number of shares: ",null,36]
["strCheckbox","You should provide more details in Box 27 as you have checked Box 28","strCheckbox=.Range(\"B37\")","Box 18 - Short position - Percentage figure (%): ",null,37]
["strNoValueBox317","You should provide details in Box 29 as you have filled in Box 25","strNoValueBox317=.Range(\"B38\")","Box 18 - Lending Pool - Total number of shares: ",null,38]
["strNoValue1701","The box is left empty. Please complete this box","strNoValue1701=.Range(\"B39\")","Box 18 - Lending Pool - Percentage figure (%): ",null,39]
["strClassofShare","You should provide more details in Box 27 as you have selected \"Others\" in Box 5","strClassofShare=.Range(\"B40\")","Box 19: ",null,40]
["str4104and4108","You should provide more details in Box 27 as you have selected code 4104 or 4108 in Box 21","str4104and4108=.Range(\"B41\")","Box 19 - Long position - Total number of shares: ",null,41]
["strEventCode","You should provide more details in Box 27 as you have selected codes 1013, 1113, 1213, 1316, 1403, 1503, 1702, 1704, 1710 or 1711 in Box 17","strEventCode=.Range(\"B42\")","Box 19 - Long position - Percentage figure (%): ",null,42]
["strCapCode","You should provide more details in Box 27 as you have selected 2501 in Box 17 or Box 20","strCapCode=.Range(\"B43\")","Box 19 - Short position - Total number of shares: ",null,43]
["strOthersInCurrency","You should provide more details in Box 27 as you have selected \"Others\" in Box 17","strOthersInCurrency=.Range(\"B44\")","Box 19 - Short position - Percentage figure (%): ",null,44]
["strLogNumber","You have entered an invalid log/serial number.  Please correct","strLogNumber=.Range(\"B45\")","Box 19 - Lending pool - Total number of shares: ",null,45]
[null,null,"=.Range(\"B46\")","Box 19 - Lending pool - Percentage figure (%): ",null,46]
[null,null,null,"Box 20 (Row  {0}) : ",null,47]
[null,null,null,"Box 20 - Capacity Code (Row  {0}) : ",null,48]
[null,null,null,"Box 20 - Long Position (Row  {0}) : ",null,49]
[null,null,null,"Box 20 - Short Position (Row  {0}) : ",null,50]
[null,null,null,"Box 21 (Row  {0}) : ",null,51]
[null,null,null,"Box 21 - Derivatives Code (Row  {0}) : ",null,52]
[null,null,null,"Box 21 - Long Position (Row  {0}) : ",null,53]
[null,null,null,"Box 21 - Short Position (Row  {0}) : ",null,54]
[null,null,null,"Box 22 (Row  {0}) : ",null,55]
[null,null,null,"Box 22 - Name of controlled corporation (Row  {0}) : ",null,56]
[null,null,null,"Box 22 - Address and place of incorporation (Row  {0}) : ",null,57]
[null,null,null,"Box 22 - Name of controlling person (Row  {0}) : ",null,58]
[null,null,null,"Box 22 - % control (Row  {0}) : ",null,59]
[null,null,null,"Box 22 - Direct interest (Y/N) (Row  {0}) : ",null,60]
[null,null,null,"Box 22 - Long Position (Row  {0}) : ",null,61]
[null,null,null,"Box 22 - Short Position (Row  {0}) : ",null,62]
[null,null,null,"Box 23 (Row  {0}) : ",null,63]
[null,null,null,"Box 23 - Name of joint shareholder (Row  {0}) : ",null,64]
[null,null,null,"Box 23 - Address (Row  {0}) : ",null,65]
[null,null,null,"Box 23 - Long Position (Row  {0}) : ",null,66]
[null,null,null,"Box 23 - Short Position (Row  {0}) : ",null,67]
[null,null,null,"Box 24 (Row  {0}) : ",null,68]
[null,null,null,"Box 24 - Name of trust (Row  {0}) : ",null,69]
[null,null,null,"Box 24 - Address (Row  {0}) : ",null,70]
[null,null,null,"Box 24 - Status Code (Row  {0}) : ",null,71]
[null,null,null,"Box 24 - Long Position (Row  {0}) : ",null,72]
[null,null,null,"Box 24 - Short Position (Row  {0}) : ",null,73]
[null,null,null,"Box 25 (Row  {0}) : ",null,74]
[null,null,null,"Box 25 - Name of other parties (Row  {0}) : ",null,75]
[null,null,null,"Box 25 - Address (Row  {0}) : ",null,76]
[null,null,null,"Box 25 - Number of shares (Row  {0}) : ",null,77]
[null,null,null,"Box 25 - Total number of shares in which a substantial shareholder is interested under sections 317: ",null,78]
[null,null,null,"Box 26 (Row  {0}) : ",null,79]
[null,null,null,"Box 26 - Names (Row  {0}) : ",null,80]
[null,null,null,"Box 26 - Address (Row  {0}) : ",null,81]
[null,null,null,"Box 26 - Relationship Code (Row  {0}) : ",null,82]
[null,null,null,"Box 26 - Percentage (%) (Row  {0} ) ",null,83]
[null,null,null,"Box 27: ",null,84]
[null,null,null,"Box 28: ",null,85]
[null,null,null,"Box 29: ",null,86]
[null,null,null,"Box 17 - Currency of transaction: ",null,87]

{"sheet":"Message","index":2,"n_rows":19,"n_cols":9,"rows_kept":19,"cut":false,"hidden":true,"merged":[]}
["Validation Checked. Please find below error for your handling (If any)","Description","Validation",null,"on","11 Apr 2017, 14:26:3",null,null,"2017-08-30T12:59:26"]
["Box 1: ","The box is left empty. Please complete this box"]
["Box 3: ","The box is left empty. Please complete this box"]
["Box 4: ","The box is left empty. Please complete this box"]
["Box 5: ","The box is left empty. Please complete this box"]
["Box 6: ","The box is left empty. Please complete this box"]
["Box 7: ","The box is left empty. Please complete this box"]
["Box 8: ","The box is left empty. Please complete this box"]
["Box 9: ","The box is left empty. Please complete this box"]
["Box 11 - Place of incorporation: ","The box is left empty. Please complete this box"]
["Box 11 - Cerificate of Incorporation number: ","The box is left empty. Please complete this box"]
["Box 12: ","The box is left empty. Please complete this box"]
["Box 13: ","The box is left empty. Please complete this box"]
["Box 14: ","The box is left empty. Please complete this box"]
["Box 17: ","Please fill in or select from the drop-down menu the relevant event code for long/short positions or both."]
["Box 18 - Long position - Total number of shares: ","The box is left empty. Please complete this box"]
["Box 18 - Long position - Percentage figure (%): ","The box is left empty. Please complete this box"]
["Box 19 - Long position - Total number of shares: ","The box is left empty. Please complete this box"]
["Box 19 - Long position - Percentage figure (%): ","The box is left empty. Please complete this box"]

{"sheet":"Supplementary(Box27)","index":3,"n_rows":10,"n_cols":2,"rows_kept":10,"cut":false,"hidden":true,"merged":[]}
[1013,"2501 "]
[1113]
[1213]
[1316]
[1403]
[1503]
[1702]
[1704]
[1710]
[1711]

{"sheet":"Dropdown_List","index":4,"n_rows":32,"n_cols":13,"rows_kept":32,"cut":false,"hidden":true,"merged":[]}
[]
["Ordinary Shares",1,null,"HKID","H",null,"Child","C",null,"Y","HKD",null,"[insert log/serial number of the previous filing]"]
["H Shares",2,null,"Passport","P",null,"Spouse","S",null,"N","CNY",null,"[插入過往的表格的編號／序號]"]
["A Shares",3,null,"PRC Resident card","R",null,null,null,null,null,"USD",null,"[插入过往的表格的编号／序号]"]
["Domestic Shares",4,null,"Others","O",null,null,null,null,null,"AUD"]
["Ordinary Shares and Preference Shares (as Share Stapled Units)",5,null,null,null,null,null,null,null,null,"BND"]
["Preference Shares",6,null,null,null,null,null,null,null,null,"CAD"]
["Units / Unit Trusts",7,null,null,null,null,null,null,null,null,"CHF"]
["American Depository Receipts (ADRs)",8,null,null,null,null,null,null,null,null,"DKK"]
["Hong Kong Depositary Receipts (HDRs)",9,null,null,null,null,null,null,null,null,"EUR"]
["Others",99,null,null,null,null,null,null,null,null,"GBP"]
[null,null,null,null,null,null,null,null,null,null,"IDR"]
[null,null,null,null,null,null,null,null,null,null,"INR"]
[null,null,null,null,null,null,null,null,null,null,"JOD"]
[null,null,null,null,null,null,null,null,null,null,"JPY"]
[null,null,null,null,null,null,null,null,null,null,"KHR"]
[null,null,null,null,null,null,null,null,null,null,"KRW"]
[null,null,null,null,null,null,null,null,null,null,"MNT"]
[null,null,null,null,null,null,null,null,null,null,"MOP"]
[null,null,null,null,null,null,null,null,null,null,"MXN"]
[null,null,null,null,null,null,null,null,null,null,"MYR"]
[null,null,null,null,null,null,null,null,null,null,"NOK"]
[null,null,null,null,null,null,null,null,null,null,"NZD"]
[null,null,null,null,null,null,null,null,null,null,"PHP"]
[null,null,null,null,null,null,null,null,null,null,"PKR"]
[null,null,null,null,null,null,null,null,null,null,"RUR"]
[null,null,null,null,null,null,null,null,null,null,"SEK"]
[null,null,null,null,null,null,null,null,null,null,"SGD"]
[null,null,null,null,null,null,null,null,null,null,"THB"]
[null,null,null,null,null,null,null,null,null,null,"TWD"]
[null,null,null,null,null,null,null,null,null,null,"ZAR"]
[null,null,null,null,null,null,null,null,null,null,"Others"]

{"sheet":"Version","index":5,"n_rows":4,"n_cols":1,"rows_kept":4,"cut":false,"hidden":true,"merged":[]}
["1.1.2"]
["form2"]
["EN"]
["CS"]

{"sheet":"Consideration(Box17)","index":6,"n_rows":4,"n_cols":2,"rows_kept":4,"cut":false,"hidden":true,"merged":[]}
[3101,"Cash "]
[3102,"Assets other than cash "]
[3103,"Surrender of rights to shares/debentures "]
[3104,"Services "]

{"sheet":"level1(Box17)","index":7,"n_rows":8,"n_cols":3,"rows_kept":8,"cut":false,"hidden":true,"merged":[]}
[100,"You first acquire a notifiable interest because:",100]
[110,"The percentage level of your interest in the shares has increased because:",110]
[120,"The percentage level of your interest in the shares has reduced because:",120]
[130,"There has been a change in nature of your interest in the shares because:",130]
[140,"You came to have a short position of 1% or more in the shares, or the percentage level of your short position in such shares increased because:",140]
[150,"You ceased to have a short position of 1% or more in the shares, or the percentage level of your short position in such shares decreased because:",150]
[160,"Approved Lending Agents",160]
[170,"Miscellaneous",170]

{"sheet":"level2(Box17)","index":8,"n_rows":65,"n_cols":3,"rows_kept":65,"cut":false,"hidden":true,"merged":[]}
[1101,"you purchased the shares",110]
[1102,"you were given the shares",110]
[1103,"you became the holder of, wrote or issued equity derivatives under which (choose one):",110]
[1104,"you acquired a security interest in the shares ",110]
[1105,"you inherited the shares ",110]
[1106,"you became a beneficiary under a trust interested in the shares",110]
[1107,"you took steps to enforce your rights in the shares you hold by way of security as a qualified lender",110]
[1109,"you entered into an agreement for the exchange of an instrument for another instrument in respect of the same underlying shares",110]
[1110,"you were placed the shares as a placee under a top-up placing ",110]
[1111,"new shares were issued to you after you have reduced your interest in shares by placing them to placee(s) under a top-up placing ",110]
[1112,"you became a member of a concert party group or a member of the concert party group acquired more of the shares ",110]
[1113,"Any other event (you must briefly describe the relevant event in the Supplementary Information box)",110]
[1201,"you completed a sale of the shares",120]
[1202,"you made a gift of the shares",120]
[1203,"you delivered the shares or an amount due under equity derivatives",120]
[1204,"expiry or cancellation without exercise of equity derivatives under which (choose one):",120]
[1205,"you ceased to have a security interest in the shares ",120]
[1206,"you did not take up, or sold, rights in a rights issue",120]
[1208,"you entered into an agreement for the exchange of an instrument for another instrument in respect of the same underlying shares",120]
[1209,"you placed the shares to placee(s) under a top-up placing ",120]
[1210,"new shares were issued in a top-up placing ",120]
[1211,"you have ceased to be a member of a concert party group or a member of the concert party group has disposed of some of the shares",120]
[1213,"Any other event (you must briefly describe the relevant event in the Supplementary Information box)",120]
[1301,"the shares have been delivered to you and you have not previously notified the purchase of the shares   ",130]
[1302,"you have entered into an agreement for the sale of shares in which you are interested but are not required to deliver them within 4 trading days",130]
[1303,"you have exercised rights to the shares under equity derivatives",130]
[1304,"rights to the shares under equity derivatives have been exercised against you",130]
[1305,"you have provided an interest in the shares as security to a person other than a qualified lender",130]
[1306,"an interest in the shares, that you provided as security to a person other than a qualified lender, has been released",130]
[1307,"you have taken steps to enforce a security interest in the shares, or rights to such shares held as security, and you are not a qualified lender",130]
[1308,"steps have been taken to enforce a security interest in the shares, or rights to such shares held as security, against you",130]
[1309,"you are a beneficiary under a will and the shares have been transferred to you by an executor",130]
[1310,"you are a beneficiary under a trust and the shares have been transferred to you by a trustee",130]
[1311,"you have delivered the shares to a person who had agreed to borrow them",130]
[1312,"the shares lent by you have been returned to you",130]
[1313,"you have lent the shares under a securities borrowing and lending agreement",130]
[1314,"you have recalled the shares under a securities borrowing and lending agreement",130]
[1315,"you have declared a trust over shares that you continue to hold",130]
[1401,"you became the holder of, wrote or issued equity derivatives under which (choose one):",140]
[1402,"you borrowed the shares under a securities borrowing and lending agreement",140]
[1501,"expiry or cancellation without exercise of equity derivatives under which (choose one):",150]
[1502,"you returned the shares borrowed under a securities borrowing and lending agreement",150]
[1601,"Notice under section 5(4) of the Securities and Futures (Disclosure of Interests – Securities Borrowing and Lending) Rules by an approved lending agent (choose one):",160]
[1602,"Notice under section 5(4) of the Securities and Futures (Disclosure of Interests – Securities Borrowing and Lending) Rules by a person that controls an approved lending agent (choose one):",160]
[1701,"On listing of the corporation or a class of shares of the listed corporation",170]
[1702,"Notice filed to remove outdated information (if you select this Code you must state the outdated information in the Supplementary Information box and identify the box which contains the updated information) ",170]
[1703,"Notice filed because of a change in the threshold for disclosure",170]
[1704,"Notice filed because you ceased to have a notifiable interest in the shares of the listed corporation (you must briefly describe the relevant event in the Supplementary Information box)",170]
[1710,"Voluntary disclosure (you must briefly describe the relevant event in the Supplementary Information box)",170]
[1711,"Other (you must briefly describe the relevant event in the Supplementary Information box)",170]
[1001,"you purchased the shares",100]
[1002,"you were given the shares",100]
[1003,"you became the holder of, wrote or issued equity derivatives under which (choose one):",100]
[1004,"you acquired a security interest in the shares ",100]
[1005,"you inherited the shares ",100]
[1006,"you became a beneficiary under a trust interested in the shares",100]
[1007,"you took steps to enforce your rights in the shares you hold by way of security as a qualified lender",100]
[1009,"you entered into an agreement for the exchange of an instrument for another instrument in respect of the same underlying shares",100]
[1010,"you were placed the shares as a placee under a top-up placing ",100]
[1011,"new shares were issued to you after you have reduced your interest in shares by placing them to placee(s) under a top-up placing ",100]
[1012,"you became a member of a concert party group or a member of the concert party group acquired more of the shares ",100]
[1013,"any other event (you must briefly describe the relevant event in the Supplementary Information box)",100]
[1316,"any other event (you must briefly describe the relevant event in the Supplementary Information box)",130]
[1403,"any other event (you must briefly describe the relevant event in the Supplementary Information box)",140]
[1503,"any other event (you must briefly describe the relevant event in the Supplementary Information box)",150]

{"sheet":"level3(Box17)","index":9,"n_rows":29,"n_cols":3,"rows_kept":29,"cut":false,"hidden":true,"merged":[]}
[11031,"you have a right to take the underlying shares",1103]
[11032,"you are under an obligation to take the underlying shares",1103]
[11033,"you have a right to receive from another person an amount if the price of the underlying shares is above a certain level",1103]
[11034,"you are under an obligation to pay another person an amount if the price of the underlying shares is below a certain level",1103]
[11035,"you have any of the rights or obligations referred to in 11031 to 11034 above embedded in a contract or instrument",1103]
[12041,"you had a right to take the underlying shares ",1204]
[12042,"you were under an obligation to take the underlying shares",1204]
[12043,"you had a right to receive from another person an amount if the price of the underlying shares was above a certain level",1204]
[12044,"you were under an obligation to pay another person an amount if the price of the underlying shares was below a certain level",1204]
[12045,"you had any of the rights or obligations referred to in 12041 to 12044 above embedded in a contract or instrument",1204]
[14011,"you have a right to require another person to take delivery of the underlying shares ",1401]
[14012,"you are under an obligation to deliver the underlying shares",1401]
[14013,"you have a right to receive from another person an amount if the price of the underlying shares is below a certain level",1401]
[14014,"you are under an obligation to pay another person an amount if the price of the underlying shares is above a certain level",1401]
[14015,"you have any of the rights or obligations referred to in 14011 to 14014 above embedded in a contract or instrument",1401]
[15011,"you have a right to require another person to take delivery of the underlying shares ",1501]
[15012,"you are under an obligation to deliver the underlying shares",1501]
[15013,"you have a right to receive from another person an amount if the price of the underlying shares is below a certain level",1501]
[15014,"you are under an obligation to pay another person an amount if the price of the underlying shares is above a certain level",1501]
[15015,"you have any of the rights or obligations referred to in 15011 to 15014 above embedded in a contract or instrument",1501]
[16011,"the percentage level of your interest in the shares held in your lending pool is taken to have increased",1601]
[16012,"the percentage level of your interest in the shares held in your lending pool is taken to have reduced",1601]
[16021,"the percentage level of your interest in the shares held in the lending pool of the approved lending agent is taken to have increased",1602]
[16022,"the percentage level of your interest in the shares held in the lending pool of the approved lending agent is taken to have reduced",1602]
[10031,"you have a right to take the underlying shares",1003]
[10032,"you are under an obligation to take the underlying shares",1003]
[10033,"you have a right to receive from another person an amount if the price of the underlying shares is above a certain level",1003]
[10034,"you are under an obligation to pay another person an amount if the price of the underlying shares is below a certain level",1003]
[10035,"you have any of the rights or obligations referred to in 10031 to 10034 above embedded in a contract or instrument",1003]

{"sheet":"Capacity(Box17_20)","index":10,"n_rows":18,"n_cols":2,"rows_kept":18,"cut":false,"hidden":true,"merged":[]}
[2101,"Beneficial owner"]
[2102,"Investment manager  "]
[2103,"Interests held jointly with another person"]
[2104,"Agent"]
[2105,"Underwriter"]
[2106,"Person having a security interest in shares"]
[2201,"Interest of corporation controlled by you"]
[2301,"Trustee"]
[2302,"Custodian (other than an exempt custodian interest)"]
[2303,"Depositary"]
[2304,"Executor or administrator"]
[2305,"Beneficiary of a trust (other than a discretionary interest)"]
[2306,"Nominee for another person (other than a bare trustee)"]
[2307,"Founder of a discretionary trust who can influence how the trustee exercises his discretion"]
[2401,"A concert party to an agreement to buy shares described in s.317(1)(a) "]
[2402,"A person making a loan or providing security to buy shares described in s.317(1)(b) "]
[2501,"Other (you must describe the capacity in the Supplementary Information box)"]
[2502,"Approved lending agent  "]

{"sheet":"Derivatives(Box21)","index":11,"n_rows":8,"n_cols":2,"rows_kept":8,"cut":false,"hidden":true,"merged":[]}
[4101,"Listed derivatives - Physically settled "]
[4102,"Listed derivatives - Cash settled "]
[4103,"Listed derivatives - Convertible instruments "]
[4104,"Listed derivatives - Other (you must describe the category of derivatives in the Supplementary Information box)"]
[4105,"Unlisted derivatives - Physically settled "]
[4106,"Unlisted derivatives - Cash settled "]
[4107,"Unlisted derivatives - Convertible instruments "]
[4108,"Unlisted derivatives - Other (you must describe the category of derivatives in the Supplementary Information box)"]

{"sheet":"Status(Box24)","index":12,"n_rows":3,"n_cols":2,"rows_kept":3,"cut":false,"hidden":true,"merged":[]}
[5101,"Trustee of a trust "]
[5102,"Beneficiary of a trust (other than a discretionary interest) "]
[5103,"Founder of a discretionary trust who can influence how the trustee exercises his discretion "]

{"sheet":"Relationship(Box26)","index":13,"n_rows":6,"n_cols":2,"rows_kept":6,"cut":false,"hidden":true,"merged":[]}
[6101,"Controller is your immediate holding company"]
[6102,"Controller is your intermediate holding company"]
[6103,"Controller is your ultimate holding company"]
[6104,"Controller is a director"]
[6105,"Controller is a shadow director"]
[6106,"Other"]